bitfinex/quotes_SOLUSD_20251128
["timestamp","ask_amount","ask_price","bid_price","bid_amount"]
[1764359880207,3.84629345,137.68,137.67,0.71]
[1764359880420,3.84629345,137.68,137.65,7.97480203]
[1764359880629,3.84629345,137.68,137.66,0.71]
[1764359881414,4.55629345,137.67,137.64,7.9750957]
[1764359881614,3.84629345,137.66,137.64,7.9750957]
[1764359882520,3.84629345,137.66,137.65,0.71]
[1764359883211,3.84629345,137.66,137.64,7.2650957]
[1764359883439,3.84629345,137.66,137.64,7.9750957]
[1764359884242,3.84629345,137.66,137.64,7.2650957]
[1764359884546,7.04629345,137.67,137.65,0.71]
[1764359886442,3.84629345,137.68,137.65,7.97432204]
[1764359886630,7.04629345,137.68,137.66,0.69]
[1764359886832,3.2,137.68,137.66,0.69]
[1764359887644,3.2,137.68,137.66,7.95389878]
[1764359888652,102.13425109,137.69,137.67,0.69]
[1764359889723,102.13425109,137.69,137.67,7.95338899]
[1764359890345,102.13425109,137.69,137.68,0.69]
[1764359892941,105.98054454,137.69,137.68,0.69]
[1764359894453,3.84629345,137.69,137.68,7.95321905]
[1764359894946,3.84629345,137.7,137.68,7.95321905]
[1764359895244,3.84629345,137.7,137.68,7.26321905]
[1764359895441,7.04629345,137.71,137.69,0.66]
[1764359895825,3.84629345,137.7,137.69,0.66]
[1764359897054,3.84629345,137.7,137.68,7.92321905]
[1764359898223,11.10755718,137.72,137.69,0.66]
[1764359898550,14.30755718,137.72,137.69,0.66]
[1764359899332,3.84629345,137.72,137.69,0.66]
[1764359899829,3.84629345,137.7,137.68,21.82691258]
[1764359900028,3.84629345,137.69,137.68,0.66]
[1764359900844,3.84629345,137.7,137.68,0.66]
[1764359902363,14.30811231,137.71,137.68,0.66]
[1764359902656,11.77811231,137.71,137.68,0.66]
[1764359902948,3.84629345,137.7,137.68,0.66]
[1764359903150,11.13181886,137.71,137.68,0.66]
[1764359903357,11.10848032,137.7,137.68,0.66]
[1764359905656,7.26218687,137.7,137.68,0.66]
[1764359906953,109.85054454,137.71,137.68,0.66]
[1764359906954,117.11244779,137.71,137.68,0.66]
[1764359907153,105.33425109,137.71,137.68,7.9228583]
[1764359907764,105.33425109,137.71,137.69,0.66]
[1764359908456,102.13425109,137.71,137.69,0.66]
[1764359911659,102.13425109,137.71,137.69,7.92264754]
[1764359912361,102.13425109,137.71,137.7,0.66]
[1764359914542,102.13425109,137.71,137.7,7.92216412]
[1764359915646,7.04629345,137.73,137.7,7.92216412]
[1764359915848,7.75629345,137.73,137.7,7.92216412]
[1764359919378,102.13425109,137.74,137.7,7.26216412]
[1764359919578,4.55629345,137.79,137.73,3.84629345]
[1764359919757,7.04629345,137.78,137.72,20.15515745]
[1764359920072,3.84629345,137.77,137.73,0.66]
[1764359921582,3.84629345,137.77,137.74,7.26005517]
[1764359922373,3.84629345,137.77,137.75,0.66]
[1764359922884,7.75629345,137.78,137.75,0.66]
[1764359925770,8.80994492,137.8,137.75,7.91910877]
[1764359925771,4.55629345,137.8,137.75,7.91910877]
[1764359926087,3.2,137.79,137.75,7.91910877]
[1764359926288,3.2,137.79,137.76,0.66]
[1764359926462,3.91,137.79,137.76,0.66]
[1764359927165,3.91,137.79,137.76,7.91862943]
[1764359927362,7.75629345,137.79,137.76,7.91862943]
[1764359927578,4.55629345,137.78,137.74,7.91978485]
[1764359927977,0.71,137.77,137.74,7.91978485]
[1764359928765,10.4261611,137.78,137.75,0.66]
[1764359930468,3.16807923,137.77,137.74,7.91978485]
[1764359930668,2.45807923,137.76,137.74,7.25978485]
[1764359930868,2.45807923,137.76,137.74,7.91978485]
[1764359931495,3.16807923,137.77,137.74,7.91978485]
[1764359934073,0.71,137.77,137.74,7.91978485]
[1764359934274,6.36807923,137.77,137.74,7.91978485]
[1764359941204,6.36807923,137.77,137.74,0.66]
[1764359942309,6.36807923,137.77,137.74,7.91968713]
[1764359942779,5.65807923,137.77,137.74,7.91968713]
[1764359942979,5.65807923,137.77,137.75,0.66]
[1764359943387,3.2,137.77,137.75,0.66]
[1764359943584,3.91,137.77,137.74,7.91968713]
[1764359947508,3.91,137.77,137.74,7.96968713]
[1764359947695,0.71,137.77,137.74,7.96968713]
[1764359947885,3.91,137.77,137.74,7.96968713]
[1764359948910,3.91,137.77,137.75,0.71]
[1764359949405,0.71,137.77,137.75,0.71]
[1764359949624,2.45807923,137.76,137.73,7.26058229]
[1764359949995,2.45807923,137.76,137.74,0.71]
[1764359951325,11.16859608,137.77,137.74,0.71]
[1764359951532,13.62667531,137.77,137.74,0.71]
[1764359951730,13.62667531,137.77,137.74,7.97002647]
[1764359959234,13.62667531,137.77,137.74,0.71]
[1764359959408,12.91667531,137.77,137.73,7.26037866]
[1764359959609,13.62667531,137.77,137.74,0.68]
[1764359961421,2.45807923,137.76,137.74,0.68]
[1764359964839,3.16807923,137.76,137.73,7.94037866]
[1764359965239,3.16807923,137.76,137.74,0.68]
[1764359965441,2.45807923,137.76,137.74,0.68]
[1764359968838,3.16807923,137.76,137.74,0.68]
[1764359969060,2.45807923,137.76,137.74,0.68]
[1764359970160,9.71718345,137.76,137.74,0.68]
[1764359970730,6.36807923,137.75,137.72,0.68]
[1764359970939,2.45807923,137.74,137.72,0.68]
[1764359971148,3.16807923,137.74,137.72,0.68]
[1764359971536,2.45807923,137.74,137.72,0.68]
[1764359971736,9.71813866,137.74,137.72,0.68]
[1764359972043,10.42813866,137.74,137.71,0.68]
[1764359972251,2.45807923,137.73,137.71,0.68]
[1764359972429,5.65807923,137.73,137.71,0.68]
[1764359972631,2.45807923,137.72,137.71,0.68]
[1764359974456,9.71918872,137.72,137.68,23.57181866]
[1764359974660,9.71918872,137.72,137.7,0.68]
[1764359975327,9.71918872,137.72,137.68,23.57181866]
[1764359975536,3.16807923,137.71,137.68,0.72]
[1764359975745,3.16807923,137.71,137.67,7.26348541]
[1764359976039,5.65807923,137.71,137.69,0.72]
[1764359976246,3.2,137.71,137.69,0.72]
[1764359979458,5.65807923,137.71,137.69,0.72]
[1764359979857,12.91973329,137.71,137.69,0.72]
[1764359983064,9.71973329,137.71,137.69,0.72]
[1764359983256,12.91973329,137.71,137.69,0.72]
[1764359985857,102.13425109,137.73,137.69,7.98219703]
[1764359986060,102.13425109,137.73,137.69,32.26560091]
[1764359986251,102.13425109,137.73,137.7,3.17807923]
[1764359986741,102.13425109,137.73,137.71,0.72]
[1764359987362,104.59233032,137.73,137.71,0.72]
[1764359990747,105.97746768,137.73,137.71,0.72]
[1764359991763,113.23823445,137.73,137.71,0.72]
[1764359991956,113.94823445,137.73,137.71,0.72]
[1764359992154,113.23823445,137.73,137.69,7.26244972]
[1764359992357,3.84321659,137.72,137.7,0.72]
[1764359993885,3.84321659,137.71,137.69,0.72]
[1764359995356,3.2,137.72,137.69,7.98267253]
[1764359995566,7.04321659,137.72,137.69,7.98267253]
[1764359995752,3.2,137.72,137.7,0.72]
[1764359996169,14.30439838,137.72,137.7,0.72]
[1764359997248,7.04321659,137.72,137.7,0.72]
[1764359997561,14.30441452,137.72,137.7,0.72]
[1764359998877,7.04321659,137.72,137.7,0.72]
[1764360000473,0.71,137.71,137.68,7.98321905]
[1764360000679,7.75321659,137.72,137.69,0.72]
[1764360000876,4.55321659,137.71,137.69,0.72]
[1764360001175,7.75321659,137.7,137.67,0.72]
[1764360001380,3.84321659,137.68,137.67,0.72]
[1764360002279,3.91,137.7,137.67,0.72]
[1764360002457,3.84321659,137.68,137.67,0.72]
[1764360003384,4.55321659,137.68,137.65,7.98443341]
[1764360003582,3.84321659,137.67,137.65,7.98443341]
[1764360003780,7.26328021,137.68,137.65,7.26443341]
[1764360003978,7.26328021,137.68,137.6,0.72]
[1764360003979,8.80994492,137.65,137.6,0.72]
[1764360004278,3.84321659,137.63,137.59,0.72]
[1764360004580,3.84321659,137.67,137.62,20.15208059]
[1764360004882,3.84321659,137.64,137.62,23.57505285]
[1764360005181,3.84321659,137.65,137.63,0.68]
[1764360005882,3.84321659,137.64,137.61,7.94671169]
[1764360006178,3.84321659,137.63,137.61,0.68]
[1764360007762,14.30805418,137.65,137.61,7.94664005]
[1764360007966,11.10805418,137.65,137.61,7.94664005]
[1764360008166,3.84321659,137.64,137.62,0.68]
[1764360008783,3.84321659,137.63,137.61,0.68]
[1764360008992,3.84321659,137.62,137.6,7.94724918]
[1764360009161,3.84321659,137.62,137.61,0.68]
[1764360009870,3.84321659,137.62,137.59,16.988864]
[1764360010075,3.84321659,137.62,137.6,0.68]
[1764360010376,3.84321659,137.61,137.58,21.94280461]
[1764360010560,3.84321659,137.6,137.58,0.78]
[1764360011372,3.84321659,137.61,137.58,0.78]
[1764360011776,3.84321659,137.61,137.58,8.04840855]
[1764360012087,7.04321659,137.62,137.58,8.04840855]
[1764360012287,7.04321659,137.62,137.59,0.68]
[1764360012490,3.84321659,137.61,137.59,0.68]
[1764360012683,3.84321659,137.6,137.58,0.78]
[1764360012879,3.84321659,137.59,137.58,0.1]
[1764360013470,7.26779746,137.6,137.58,0.1]
[1764360013666,3.84321659,137.6,137.58,0.78]
[1764360013970,11.11067172,137.6,137.58,0.78]
[1764360014280,3.84321659,137.59,137.58,0.78]
[1764360014473,3.84321659,137.59,137.58,0.1]
[1764360014672,4.55321659,137.59,137.58,0.1]
[1764360015067,11.82118664,137.59,137.58,0.1]
[1764360015782,11.11118664,137.59,137.58,0.1]
[1764360016189,3.84321659,137.59,137.58,0.1]
[1764360016568,11.11118664,137.59,137.58,0.1]
[1764360017068,14.31118664,137.59,137.58,0.1]
[1764360018783,7.04321659,137.59,137.58,0.1]
[1764360018988,14.31118664,137.59,137.58,0.1]
[1764360020072,15.02118664,137.59,137.58,0.1]
[1764360021192,14.31118664,137.59,137.58,0.1]
[1764360021791,15.02118664,137.59,137.58,0.1]
[1764360021991,14.31118664,137.59,137.58,0.1]
[1764360022978,15.02118664,137.59,137.58,0.1]
[1764360025070,24.1154547,137.59,137.58,0.1]
[1764360028197,9.09426806,137.58,137.57,0.1]
[1764360028407,13.64748465,137.58,137.57,0.1]
[1764360029288,20.91598297,137.58,137.57,0.1]
[1764360031214,20.91598297,137.58,137.57,1e-08]
[1764360031585,20.91598297,137.58,137.56,0.1]
[1764360031586,24.75919956,137.58,137.56,0.1]
[1764360031804,28.18962032,137.57,137.56,0.1]
[1764360032000,9.09426806,137.56,137.55,0.1]
[1764360032285,20.69070124,137.56,137.55,0.1]
[1764360033606,27.96025634,137.56,137.55,0.1]
[1764360035791,27.96025634,137.56,137.54,0.1]
[1764360035993,121.59070124,137.55,137.54,0.1]
[1764360037099,0.28432314,137.53,137.51,0.1]
[1764360037413,7.32753973,137.53,137.51,0.1]
[1764360037582,8.03753973,137.53,137.51,0.1]
[1764360037786,15.30868057,137.53,137.51,0.1]
[1764360044499,40.42748949,137.53,137.51,0.1]
[1764360044821,0.28432314,137.52,137.51,0.1]
[1764360044998,4.83753973,137.52,137.51,0.1]
[1764360045797,9.09426806,137.5,137.47,0.1]
[1764360046011,3.84321659,137.48,137.47,0.1]
[1764360046199,12.93748465,137.48,137.47,0.1]
[1764360046613,20.21126992,137.48,137.47,0.1]
[1764360049823,20.92126992,137.48,137.47,0.1]
[1764360050320,24.76448651,137.48,137.47,0.1]
[1764360051695,27.96448651,137.48,137.47,0.1]
[1764360052244,27.96448651,137.48,137.47,1e-08]
[1764360052719,32.63075923,137.48,137.47,1e-08]
[1764360053897,29.43075923,137.48,137.47,1e-08]
[1764360054099,32.63075923,137.48,137.47,1e-08]
[1764360055400,28.72075923,137.48,137.47,1e-08]
[1764360055603,32.63075923,137.48,137.47,1e-08]
[1764360057500,22.03859451,137.48,137.47,0.68000001]
[1764360057900,22.03859451,137.48,137.47,1e-08]
[1764360059432,12.94432645,137.48,137.47,0.68000001]
[1764360059609,12.94432645,137.48,137.47,1e-08]
[1764360060201,22.03859451,137.48,137.47,1e-08]
[1764360060604,16.308864,137.45,137.43,0.68]
[1764360060802,5.67054118,137.44,137.43,0.68]
[1764360061111,9.09426806,137.43,137.4,0.68]
[1764360061311,2.47054118,137.41,137.4,0.68]
[1764360062121,5.67054118,137.41,137.4,0.68]
[1764360063430,12.9480319,137.41,137.4,0.68]
[1764360063636,33.61229988,137.41,137.38,0.68]
[1764360063803,2.47054118,137.39,137.37,0.68]
[1764360064007,5.67054118,137.38,137.33,0.68]
[1764360064237,2.47054118,137.35,137.33,0.68]
[1764360064920,9.75124051,137.35,137.33,0.68]
[1764360065231,10.48069933,137.35,137.33,0.68]
[1764360065545,12.95124051,137.35,137.33,0.68]
[1764360066218,2.47054118,137.34,137.33,0.68]
[1764360067736,12.95124051,137.35,137.33,0.68]
[1764360068114,2.47054118,137.34,137.33,0.68]
[1764360069314,9.75174112,137.34,137.33,0.68]
[1764360070133,7.28119994,137.34,137.33,0.68]
[1764360070314,9.75174112,137.34,137.33,0.68]
[1764360073835,2.47054118,137.34,137.33,0.68]
[1764360074042,9.75174112,137.34,137.33,0.68]
[1764360075137,9.75174112,137.34,137.24,3.2]
[1764360075138,30.42528215,137.34,137.31,0.68]
[1764360075345,16.308864,137.31,137.25,0.68]
[1764360075641,16.09344664,137.3,137.26,0.68]
[1764360075814,5.67054118,137.29,137.26,0.68]
[1764360076017,2.47054118,137.29,137.26,0.68]
[1764360076241,2.47054118,137.28,137.26,0.68]
[1764360076616,5.67054118,137.29,137.26,0.68]
[1764360076819,7.28671957,137.34,137.26,10.4359311]
[1764360077125,5.67054118,137.32,137.27,2.47054118]
[1764360077325,5.67054118,137.34,137.28,18.77940518]
[1764360077628,9.75241352,137.33,137.28,0.68]
[1764360077940,7.28187234,137.33,137.29,0.68]
[1764360078123,3.22,137.34,137.29,3.15054118]
[1764360078653,5.69054118,137.34,137.3,0.68]
[1764360079145,12.9718976,137.34,137.3,0.68]
[1764360079318,5.69054118,137.34,137.3,7.96316596]
[1764360079724,12.97175261,137.34,137.31,0.68]
[1764360079927,3.22,137.34,137.31,0.68]
[1764360080131,10.50132462,137.34,137.31,0.68]
[1764360080921,7.28132462,137.34,137.31,0.68]
[1764360081335,9.7518658,137.34,137.31,0.68]
[1764360084032,2.47054118,137.32,137.31,0.68]
[1764360086037,9.75243433,137.33,137.31,0.68]
[1764360087745,2.47054118,137.32,137.31,0.68]
[1764360089045,12.97290803,137.32,137.3,0.68]
[1764360089637,10.50236685,137.32,137.3,0.68]
[1764360090132,12.97290803,137.32,137.3,0.68]
[1764360090634,3.22,137.32,137.3,0.68]
[1764360090834,12.9724052,137.33,137.3,0.68]
[1764360093461,10.50186402,137.33,137.3,0.68]
[1764360094753,12.9724052,137.33,137.3,0.68]
[1764360095726,3.80609451,137.35,137.3,7.96331829]
[1764360095933,3.80609451,137.35,137.31,0.72]
[1764360095934,2.47054118,137.35,137.31,0.72]
[1764360096350,5.69054118,137.34,137.31,0.72]
[1764360096539,3.22,137.34,137.31,0.72]
[1764360096756,5.69054118,137.34,137.31,0.72]
[1764360097059,3.22,137.34,137.31,8.002733]
[1764360097288,2.47054118,137.36,137.31,8.002733]
[1764360097558,5.69054118,137.36,137.32,0.72]
[1764360098257,3.80566708,137.37,137.33,2.47054118]
[1764360098432,2.47054118,137.36,137.32,0.72]
[1764360098639,2.47054118,137.35,137.32,0.72]
[1764360099029,9.75095208,137.36,137.32,8.00216898]
[1764360099236,3.80566708,137.37,137.33,0.72]
[1764360099433,9.74963579,137.38,137.33,0.72]
[1764360100152,2.47054118,137.37,137.33,0.72]
[1764360100547,9.75017756,137.37,137.33,8.00128228]
[1764360100950,9.75017756,137.37,137.34,0.72]
[1764360102637,2.47054118,137.36,137.34,0.72]
[1764360103133,2.47054118,137.35,137.34,0.72]
[1764360104661,9.751211,137.35,137.34,0.72]
[1764360105959,9.751211,137.35,137.31,7.28255556]
[1764360106151,2.47054118,137.34,137.33,0.72]
[1764360108861,2.47054118,137.34,137.31,7.28255556]
[1764360109062,2.47054118,137.34,137.32,0.72]
[1764360109444,9.75179207,137.34,137.32,0.72]
[1764360110571,2.47054118,137.34,137.32,0.72]
[1764360110770,9.75140686,137.35,137.32,0.72]
[1764360111471,2.47054118,137.34,137.32,0.72]
[1764360111777,7.28086568,137.35,137.32,0.72]
[1764360111956,9.75140686,137.35,137.32,0.72]
[1764360112668,11.14550101,137.35,137.32,0.72]
[1764360114073,3.86463533,137.38,137.32,11.86662436]
[1764360114576,3.86463533,137.38,137.33,0.72]
[1764360115157,32.49823343,137.4,137.33,0.72]
[1764360115351,3.86463533,137.38,137.33,0.72]
[1764360115547,3.86463533,137.37,137.33,0.72]
[1764360115752,3.86463533,137.36,137.33,0.72]
[1764360115975,3.86463533,137.36,137.33,8.00161425]
[1764360116352,3.86463533,137.36,137.34,0.72]
[1764360116752,3.86463533,137.35,137.33,0.72]
[1764360117067,3.86463533,137.34,137.31,26.81120342]
[1764360117652,3.86463533,137.34,137.32,0.72]
[1764360119756,3.86463533,137.34,137.33,0.72]
[1764360120666,3.86463533,137.34,137.32,0.72]
[1764360120981,25.48048921,137.36,137.32,0.72]
[1764360121191,3.86463533,137.33,137.3,7.28280558]
[1764360121366,3.86463533,137.31,137.28,8.00396471]
[1764360121561,3.86463533,137.29,137.28,7.28396471]
[1764360121761,19.528864,137.33,137.28,7.28396471]
[1764360122066,3.86463533,137.3,137.29,0.72]
[1764360123276,3.86463533,137.3,137.27,7.28469864]
[1764360123474,3.86463533,137.3,137.29,0.72]
[1764360123975,3.86463533,137.31,137.29,0.72]
[1764360125874,3.86463533,137.3,137.29,0.72]
[1764360126863,11.14744745,137.31,137.29,0.72]
[1764360127888,11.14692319,137.32,137.29,0.72]
[1764360128856,115.2465961,137.33,137.29,8.0037396]
[1764360129056,104.1,137.33,137.29,8.0037396]
[1764360129280,3.86463533,137.34,137.3,0.7]
[1764360129862,3.86463533,137.33,137.3,0.7]
[1764360130276,3.86463533,137.33,137.3,7.98322198]
[1764360130785,3.86463533,137.33,137.31,0.7]
[1764360131392,3.86463533,137.32,137.31,0.7]
[1764360131997,3.86463533,137.32,137.31,0.2]
[1764360132390,3.86463533,137.33,137.31,0.2]
[1764360135287,3.86463533,137.34,137.31,7.48277219]
[1764360135707,7.27763791,137.41,137.34,16.308864]
[1764360135991,1.99999999,137.45,137.38,3.86463533]
[1764360135992,3.86463533,137.44,137.38,3.86463533]
[1764360136170,3.86463533,137.43,137.38,3.86463533]
[1764360136375,3.86463533,137.42,137.39,0.69]
[1764360136987,7.27674434,137.43,137.39,0.69]
[1764360137170,3.86463533,137.42,137.39,0.69]
[1764360137366,11.14137967,137.43,137.39,0.69]
[1764360137875,3.86463533,137.42,137.39,0.69]
[1764360138676,11.14173151,137.42,137.39,0.69]
[1764360138876,7.27709618,137.42,137.39,4.55463533]
[1764360139200,7.27709618,137.42,137.39,0.69]
[1764360139401,7.27709618,137.42,137.4,0.69]
[1764360140375,7.27590221,137.44,137.4,4.55463533]
[1764360140574,10.49590221,137.44,137.41,3.86463533]
[1764360140796,10.49590221,137.44,137.41,4.55463533]
[1764360141008,10.49590221,137.44,137.42,0.69]
[1764360141571,131.48731085,137.46,137.42,4.55463533]
[1764360141815,104.1,137.46,137.44,3.86463533]
[1764360142181,104.1,137.46,137.43,3.86463533]
[1764360142416,104.1,137.46,137.45,0.69]
[1764360143401,10.49401923,137.48,137.45,0.69]
[1764360147400,3.86463533,137.46,137.42,0.69]
[1764360147600,7.08463533,137.45,137.42,0.69]
[1764360147810,3.22,137.45,137.42,0.69]
[1764360148521,7.08463533,137.45,137.42,0.69]
[1764360149585,14.36036355,137.45,137.42,0.69]
[1764360150011,10.49572822,137.45,137.42,0.69]
[1764360150423,14.36036355,137.45,137.42,0.69]
[1764360150716,3.86463533,137.43,137.38,0.69]
[1764360150880,0.5,137.44,137.38,0.69]
[1764360150881,7.08463533,137.42,137.38,0.69]
[1764360151885,11.14166052,137.42,137.38,7.96894313]
[1764360152207,3.22,137.41,137.38,11.83357846]
[1764360152390,3.22,137.41,137.39,0.69]
[1764360153986,14.36166052,137.42,137.39,0.69]
[1764360156014,118.46166052,137.42,137.39,0.69]
[1764360157918,114.59702519,137.42,137.39,0.69]
[1764360159811,118.46166052,137.42,137.39,0.69]
[1764360162515,104.1,137.42,137.39,7.96835064]
[1764360162819,107.32,137.42,137.39,11.83298597]
[1764360163022,107.32,137.42,137.4,0.72]
[1764360164220,104.1,137.42,137.4,0.72]
[1764360167402,115.74204682,137.42,137.38,7.99901224]
[1764360167601,115.74204682,137.42,137.39,0.72]
[1764360168222,115.24204682,137.42,137.39,0.72]
[1764360169621,3.86463533,137.41,137.39,0.72]
[1764360169828,115.74204682,137.42,137.39,0.72]
[1764360171315,115.24204682,137.42,137.39,0.72]
[1764360172208,115.74204682,137.42,137.39,0.72]
[1764360172604,114.34848254,137.42,137.39,0.72]
[1764360173110,113.84848254,137.42,137.39,0.72]
[1764360173620,117.04848254,137.42,137.39,0.72]
[1764360175312,2.47107105,137.4,137.36,3.92]
[1764360175634,2.47107105,137.4,137.37,0.72]
[1764360176307,9.74929454,137.4,137.37,0.72]
[1764360176828,9.74882328,137.41,137.37,7.99953892]
[1764360177241,9.74882328,137.41,137.38,0.72]
[1764360178608,7.27775223,137.41,137.38,0.72]
[1764360178804,7.27775223,137.41,137.38,7.9990467]
[1764360179133,7.27775223,137.41,137.38,10.47011775]
[1764360179314,7.27775223,137.41,137.39,0.72]
[1764360179630,114.57721049,137.42,137.39,0.72]
[1764360180221,104.1,137.42,137.39,3.19107105]
[1764360180422,104.1,137.42,137.4,0.72]
[1764360180620,104.1,137.42,137.4,7.9979308]
[1764360181427,104.1,137.42,137.4,7.2779308]
[1764360181631,104.1,137.46,137.41,3.19107105]
[1764360181929,104.1,137.46,137.42,2.47107105]
[1764360182131,104.1,137.46,137.42,3.19107105]
[1764360182340,104.1,137.46,137.43,0.72]
[1764360182839,111.37537054,137.46,137.43,0.72]
[1764360183016,2.47107105,137.44,137.39,0.72]
[1764360183216,5.67107105,137.43,137.4,0.72]
[1764360183615,3.2,137.43,137.4,0.72]
[1764360183819,6.17107105,137.43,137.4,0.72]
[1764360184019,5.67107105,137.43,137.4,0.72]
[1764360184239,12.94797819,137.43,137.4,0.72]
[1764360184438,13.44797819,137.43,137.39,7.2781654]
[1764360184623,13.44797819,137.43,137.39,0.72]
[1764360184624,2.47107105,137.41,137.39,0.72]
[1764360184814,2.47107105,137.41,137.38,7.27898284]
[1764360185015,2.47107105,137.41,137.38,7.99898284]
[1764360185417,2.97107105,137.42,137.38,7.99898284]
[1764360185814,10.24852619,137.42,137.38,7.27898284]
[1764360186031,10.24852619,137.42,137.39,0.72]
[1764360186639,2.47107105,137.41,137.38,0.72]
[1764360186845,2.97107105,137.41,137.38,0.72]
[1764360187142,2.47107105,137.41,137.38,0.72]
[1764360187521,9.74898384,137.41,137.37,7.27960595]
[1764360187721,10.24898384,137.41,137.38,0.72]
[1764360188130,9.74898384,137.41,137.38,0.72]
[1764360188643,7.27696114,137.42,137.38,7.99887648]
[1764360188946,107.3,137.43,137.39,2.47107105]
[1764360189238,107.3,137.43,137.39,3.19107105]
[1764360189419,107.3,137.43,137.4,0.72]
[1764360189831,114.57666007,137.43,137.4,0.72]
[1764360190238,117.04773112,137.43,137.4,0.72]
[1764360190549,117.54773112,137.43,137.4,0.72]
[1764360190917,117.04773112,137.43,137.4,0.72]
[1764360192147,2.47107105,137.42,137.4,0.72]
[1764360192546,117.54773112,137.43,137.4,0.72]
[1764360194141,114.57666007,137.43,137.4,0.72]
[1764360194531,117.04773112,137.43,137.4,0.72]
[1764360194915,104.1,137.43,137.4,10.4689133]
[1764360195319,104.1,137.43,137.41,0.71]
[1764360196331,104.1,137.43,137.41,7.98737348]
[1764360196531,104.1,137.43,137.42,0.71]
[1764360196828,113.84666349,137.45,137.42,0.71]
[1764360197224,111.37559244,137.45,137.42,0.71]
[1764360197448,111.37559244,137.45,137.42,7.98693352]
[1764360197650,111.37559244,137.45,137.42,0.71]
[1764360199046,114.34666349,137.45,137.4,7.27777079]
[1764360199226,2.47107105,137.44,137.41,0.71]
[1764360199728,9.74721709,137.44,137.41,0.71]
[1764360200637,10.24721709,137.44,137.41,0.71]
[1764360200841,9.74721709,137.44,137.41,0.71]
[1764360202380,7.27614604,137.44,137.41,0.71]
[1764360202546,10.47614604,137.44,137.41,0.71]
[1764360204549,13.44721709,137.44,137.4,0.71]
[1764360204853,0.5,137.43,137.4,0.71]
[1764360205229,13.44721709,137.44,137.4,0.71]
[1764360205966,13.44721709,137.44,137.4,7.98792173]
[1764360206140,12.94721709,137.44,137.4,7.98792173]
[1764360206334,12.94721709,137.44,137.39,7.27846879]
[1764360206635,2.97107105,137.43,137.4,0.71]
[1764360207459,9.74789749,137.43,137.4,0.71]
[1764360208356,2.47107105,137.41,137.37,0.71]
[1764360208549,5.67107105,137.4,137.37,0.71]
[1764360209890,12.94948936,137.4,137.37,0.71]
[1764360210457,2.47107105,137.38,137.34,0.71]
[1764360210660,2.47107105,137.37,137.34,0.71]
[1764360211871,9.75068509,137.37,137.34,7.99110974]
[1764360212166,7.27961404,137.37,137.34,7.99110974]
[1764360212343,7.27961404,137.37,137.35,0.71]
[1764360212542,12.95039923,137.38,137.35,0.71]
[1764360212850,0.5,137.39,137.35,0.71]
[1764360212851,5.67107105,137.39,137.35,0.71]
[1764360213053,3.2,137.39,137.35,3.18107105]
[1764360213239,12.94904881,137.41,137.36,2.47107105]
[1764360213442,2.47107105,137.39,137.36,0.71]
[1764360213845,9.74965478,137.39,137.36,0.71]
[1764360215467,10.24965478,137.39,137.36,0.71]
[1764360215661,7.77858373,137.39,137.36,0.71]
[1764360216056,2.97107105,137.38,137.34,0.66]
[1764360216365,6.19107105,137.38,137.34,0.66]
[1764360216567,2.47107105,137.35,137.31,7.94240417]
[1764360216744,2.47107105,137.35,137.32,0.66]
[1764360216942,2.47107105,137.37,137.32,0.66]
[1764360217142,2.47107105,137.34,137.3,0.66]
[1764360217344,2.47107105,137.33,137.3,0.66]
[1764360217564,2.47107105,137.32,137.28,7.94401893]
[1764360217753,2.97107105,137.33,137.29,0.66]
[1764360217945,10.25317809,137.33,137.29,0.66]
[1764360219171,7.78210704,137.33,137.29,7.94383243]
[1764360219367,9.75317809,137.33,137.29,0.66]